[Event "Budapest One Week IM-A 03-2025"]
[Site "Budapest"]
[Date "2025.03.21"]
[Round "8.2"]
[White "Horvath, David"]
[Black "Ratsma, Midas"]
[Result "1/2-1/2"]
[Annotator "TA"]
[ECO "E04"]
[WhiteElo "2279"]
[BlackElo "2268"]
[PlyCount "193"]
[EventDate "2025.03.17"]
[EventType "tourn"]
[EventCountry "HUN"]
[SourceTitle "playchess.com"]
[Source "ChessBase"]
[SourceQuality "1"]
[TimeControl "5400+30"]

{[%evp 17,192,17,28,13,22,13,20,25,33,22,9,20,20,14,16,9,0,14,8,13,13,15,18,14,33,33,36,20,28,11,37,39,28,32,34,31,33,14,40,8,20,0,0,-8,0,-10,0,0,0,0,0,0,0,0,0,0,0,0,0,0,0,0,0,0,0,-8,-8,-8,0,-8,0,0,0,0,-12,-47,-8,-75,0,-54,0,-79,0,-76,0,0,0,0,0,0,0,0,0,0,0,0,0,0,0,-52,-44,-48,-29,-64,0,-39,-33,-49,-6,-56,-57,-58,-58,-55,-2,-2,0,-8,-6,-8,-8,-8,0,0,0,0,0,0,0,0,0,0,0,0,0,0,0,0,7,7,7,7,7,7,7,7,7,7,8,8,8,8,8,8,8,8,8,8,8,0,0,0,0,0,0,0,0,0,0,0,0,0,0,0,0,0,0]} 1. d4 {[%emt 0:00:02]} Nf6 {[%emt 0:02:21]} 2. c4 {[%emt 0:00:24]} e6 {[%emt 0:00:06]} 3. Nf3 {[%emt 0:00:04]} d5 {[%emt 0:00:05]} 4. g3 {[%emt 0:00:42]} dxc4 {[%emt 0:01:14]} 5. Bg2 {[%emt 0:00:05]} c5 {[%emt 0:00:05]} 6. O-O {[%emt 0:00:08]} Nc6 {[%emt 0:00:04]} 7. dxc5 {[%emt 0:02:29]} Qxd1 {[%emt 0:00:08]} 8. Rxd1 {[%emt 0:00:04]} Bxc5 {[%emt 0:00:06]} 9. Nbd2 {[%emt 0:00:08]} Ng4 {[%emt 0:03:06]} 10. Ne4 {[%emt 0:03:36] White sacrificed a pawn E04: Open Catalan: 5 Nf3.} Be7 {[%emt 0:00:06]} 11. h3 {[%emt 0:19:01]} Nf6 {[%emt 0:00:59]} 12. Nxf6+ {[%emt 0:00:03]} Bxf6 {[%emt 0:00:09]} 13. Nd2 {[%emt 0:00:02]} Na5 {[%emt 0:07:58]} 14. Ne4 {[%emt 0:00:09]} Be7 {[%emt 0:00:20]} 15. Bd2 {[%emt 0:00:07]} Nc6 {[%emt 0:00:30]} 16. Rac1 {[%emt 0:00:16]} e5 {[%emt 0:02:50]} 17. Rxc4 {[%emt 0:00:05]} Be6 {[%emt 0:00:32] [#]} 18. Nf6+ $1 {[%emt 0:00:07]} Bxf6 {[%emt 0:28:23]} 19. Rxc6 {[%emt 0:04:14]} Rd8 {[%emt 0:05:16]} (19... bxc6 $6 20. Bxc6+ Kd8 21. Bxa8 $18) 20. Rc7 {[%emt 0:17:21]} Bxa2 $146 {[%emt 0:05:26]} (20... O-O 21. Rxb7 Rd6 22. Rxa7 Rfd8 23. Ra8 Rxa8 24. Bxa8 Bxa2 25. Ra1 Rxd2 26. Rxa2 Rxe2 27. Bd5 Kf8 28. Ra8+ {½-½ Mack,J-Mulde,R DESC T0212 email 2010}) 21. Rxb7 {[%emt 0:00:06]} O-O {[%emt 0:01:04]} 22. Kf1 {[%emt 0:00:59][%cal Of1e1]} (22. Rxa7 $2 Bb3 23. Re1 Rxd2 $19) 22... Rd6 {[%emt 0:02:21]} 23. Bf3 {[%emt 0:02:09][%cal Od1a1]} (23. Rxa7 Bb3 24. Rb7 Bc2 $19 (24... Bxd1 $2 25. Bb4 $19)) 23... Rfd8 {[%emt 0:06:36]} 24. Ra1 {[%emt 0:01:43]} (24. Rxa7 $2 Bb3 (24... Rxd2 25. Rxd2 Rxd2 26. Ra8+ Rd8 27. Rxa2 $16) 25. Rc1 Rxd2 $19) 24... Be6 {[%emt 0:03:18]} 25. Bc3 {[%emt 0:15:13]} Bxh3+ {[%emt 0:00:44]} 26. Ke1 {[%emt 0:00:02]} a6 {[%emt 0:03:24]} 27. Ra7 {[%emt 0:06:40][%mdl 1024] White has compensation.} Bc8 {[%emt 0:03:05]} 28. Be4 {[%emt 0:06:46]} h5 {[%emt 0:07:25]} 29. Ba5 {[%emt 0:11:50]} Re8 {[%emt 0:00:16]} 30. Rd1 {[%emt 0:00:21]} Rxd1+ {[%emt 0:01:57]} 31. Kxd1 {[%emt 0:00:01]} Bd8 {[%emt 0:04:46]} 32. b4 {[%emt 0:04:43]} Bxa5 {[%emt 0:06:30]} 33. bxa5 $11 {[%emt 0:00:01][%mdl 4096] Endgame KRB-KRB. Black is a pawn up.} g5 {[%emt 0:00:48]} 34. Ke1 {[%emt 0:03:23]} h4 {[%emt 0:00:34]} 35. gxh4 {[%emt 0:01:37]} gxh4 {[%emt 0:00:04]} 36. Kf1 {[%emt 0:01:22]} Rd8 {[%emt 0:01:27]} 37. Kg2 {[%emt 0:01:08]} Kg7 {[%emt 0:03:39]} 38. Bd3 {[%emt 0:01:35]} Rd5 {[%emt 0:00:12]} 39. Rc7 {[%emt 0:00:29] Against Rc5} Bg4 {[%emt 0:01:23]} 40. f3 {[%emt 0:00:28]} Bh5 {[%emt 0:00:05]} 41. Bxa6 {[%emt 0:00:26]} Rxa5 {[%emt 0:00:04]} 42. Bc4 {[%emt 0:00:31]} Ra1 {[%emt 0:00:54]} 43. Bd3 {[%emt 0:00:29]} Kf6 {[%emt 0:00:17]} 44. Rc4 {[%emt 0:00:26]} Kg5 {[%emt 0:00:17]} 45. Rc5 {[%emt 0:00:46]} f6 {[%emt 0:00:28]} 46. Rc4 {[%emt 0:00:12]} Ra5 {[%emt 0:01:12]} 47. Kh3 {[%emt 0:00:32]} (47. Rc8 $11) 47... Ra1 {[%emt 0:00:09]} (47... f5 $5) 48. Kg2 {[%emt 0:00:06]} f5 {[%emt 0:00:57]} (48... Rd1 $15) 49. Rb4 {[%emt 0:00:15]} (49. Rc5 $11) 49... Bg6 {[%emt 0:00:25]} (49... Ra3 $17) 50. Kf2 {[%emt 0:01:17]} (50. Rb5 $1 $11 {keeps the balance.}) 50... Rc1 {[%emt 0:00:29]} (50... h3 $17 {( -> ...h2)} 51. Kg3 f4+ 52. Kxh3 Bxd3 53. exd3 Rd1) 51. Rb5 {[%emt 0:00:37]} Kf6 {[%emt 0:00:49]} 52. Rb6+ {[%emt 0:00:05]} Kg7 {[%emt 0:00:34]} 53. Rb7+ {[%emt 0:00:04]} Kh6 {[%emt 0:00:25]} 54. Rb6 {[%emt 0:00:07]} Kg5 {[%emt 0:00:35]} 55. Rb5 {[%emt 0:00:04]} Kf6 {[%emt 0:00:24]} 56. Rb6+ {[%emt 0:00:04]} Kf7 {[%emt 0:00:17]} 57. Rb7+ {[%emt 0:00:10]} Kf8 {[%emt 0:00:27]} 58. Rb5 {[%emt 0:01:22]} (58. Rb8+ $11 Kg7 59. Rb7+ Kf6 60. Rb6+) 58... e4 $15 {[%emt 0:00:21]} 59. Rb1 {[%emt 0:02:02]} Rc5 {[%emt 0:01:00]} 60. Rb5 {[%emt 0:00:25]} Rc1 {[%emt 0:00:15]} 61. Rb1 $1 {[%emt 0:00:10]} Rc3 {[%emt 0:00:23]} 62. Ba6 {[%emt 0:00:55]} Kg7 {[%emt 0:00:41]} 63. Rh1 {[%emt 0:00:29]} ({Better is} 63. fxe4 $1 $11 fxe4 64. Rh1) 63... Ra3 {[%emt 0:00:23]} 64. Bb5 {[%emt 0:00:27]} Rb3 {[%emt 0:00:05]} 65. Ba6 {[%emt 0:00:27]} e3+ {[%emt 0:00:37]} (65... Rb6 $15 66. fxe4 Rxa6 (66... fxe4 67. Bc8 $11) 67. exf5 Bxf5 68. Rxh4 Kg6) 66. Kg2 $11 {[%emt 0:00:09] The position is equal.} Rb4 {[%emt 0:00:10]} 67. Bd3 {[%emt 0:00:59]} Kf6 {[%emt 0:00:19]} 68. Ra1 {[%emt 0:00:22]} Bf7 {[%emt 0:00:59]} 69. Kh3 {[%emt 0:00:11]} Bc4 {[%emt 0:00:52]} 70. Bxc4 {[%emt 0:00:35]} Rxc4 {[%emt 0:00:04] KR-KR. Black is a pawn up.} 71. Ra3 {[%emt 0:00:08]} f4 {[%emt 0:00:55]} 72. Kxh4 {[%emt 0:00:22]} Rc2 {[%emt 0:00:30]} 73. Kg4 {[%emt 0:00:06]} Ke5 {[%emt 0:00:05]} 74. Ra4 {[%emt 0:00:11]} Rxe2 {[%emt 0:00:33]} 75. Re4+ {[%emt 0:00:17]} Kf6 {[%emt 0:00:16]} 76. Kxf4 {[%emt 0:00:07]} Re1 {[%emt 0:00:16]} 77. Ra4 {[%emt 0:00:13]} e2 {[%emt 0:00:41]} 78. Ke3 $1 {[%emt 0:00:05]} Kf5 {[%emt 0:00:29]} 79. Ra5+ {[%emt 0:00:05]} Kf6 {[%emt 0:00:11]} 80. Kf2 {[%emt 0:00:08]} Rb1 {[%emt 0:00:16]} 81. Kxe2 {[%emt 0:00:04]} Rb2+ {[%emt 0:00:14]} 82. Ke3 {[%emt 0:00:05]} Rb3+ {[%emt 0:00:06]} 83. Kf4 {[%emt 0:00:05]} Rb4+ {[%emt 0:00:15]} 84. Kg3 {[%emt 0:00:05]} Rb6 {[%emt 0:00:19]} 85. Kg4 {[%emt 0:00:07]} Rc6 {[%emt 0:00:18]} 86. f4 {[%emt 0:00:05][%cal Bf3f4,Bf4f5,Bf5f6][%mdl 32]} Rb6 {[%emt 0:00:07]} 87. Rh5 {[%emt 0:00:12]} Kg7 {[%emt 0:00:33] Inhibits Rh6.} 88. Kg5 {[%emt 0:00:24]} Rb5+ {[%emt 0:00:25]} 89. f5 {[%emt 0:00:20]} Rb1 {[%emt 0:00:09]} 90. f6+ {[%emt 0:01:01]} Kf7 {[%emt 0:00:06]} 91. Rh7+ {[%emt 0:00:18]} Kf8 {[%emt 0:00:05]} 92. Rh8+ {[%emt 0:01:09]} Kf7 {[%emt 0:00:05]} 93. Rh7+ {[%emt 0:00:07]} Kf8 {[%emt 0:00:05]} 94. Rg7 {[%emt 0:00:23]} Rg1+ {[%emt 0:00:05]} 95. Kh6 {[%emt 0:00:03]} Rxg7 {[%emt 0:00:06]} 96. fxg7+ {[%emt 0:00:04]} Kg8 {[%emt 0:00:05]} 97. Kg6 {Weighted Error Value: White=0.14 (very precise) /Black=0.12 (very precise)   Mistake:       	White=5     	Black=4      Inaccurate:     	White=3     	Black=4      OK:         	White=48    	Black=36     Best:        	White=4     	Black=4      Strong:       	White=2     	---} 1/2-1/2

[Event "Budapest One Week IM-A 03-2025"]
[Site "Budapest"]
[Date "2025.03.21"]
[Round "8.3"]
[White "Rydstrom, Tom"]
[Black "Singh, Siddharth"]
[Result "1/2-1/2"]
[Annotator "TA"]
[ECO "B99"]
[WhiteElo "2301"]
[BlackElo "2239"]
[PlyCount "107"]
[EventDate "2025.03.17"]
[EventType "tourn"]
[EventCountry "HUN"]
[SourceTitle "playchess.com"]
[Source "ChessBase"]
[SourceQuality "1"]
[TimeControl "5400+30"]

{[%evp 22,107,34,31,93,45,64,60,47,49,84,-15,-3,0,0,3,-4,-19,8,-36,-5,-10,46,0,0,0,9,10,0,0,0,11,2,2,6,-5,4,16,18,6,10,0,0,0,0,11,4,4,4,14,18,12,116,118,172,172,172,172,154,169,159,165,166,160,326,337,335,321,347,343,573,559,484,170,164,88,204,98,108,77,86,-1,-4,-8,-8,-7,0,0]} 1. e4 {[%emt 0:07:09]} c5 {[%emt 0:00:04]} 2. Nf3 {[%emt 0:00:07]} d6 {[%emt 0:00:04]} 3. d4 {[%emt 0:00:16]} cxd4 {[%emt 0:00:03]} 4. Nxd4 {[%emt 0:00:02]} Nf6 {[%emt 0:00:04]} 5. Nc3 {[%emt 0:00:10]} a6 {[%emt 0:00:04]} 6. Bg5 {[%emt 0:00:10]} e6 {[%emt 0:00:06]} 7. f4 {[%emt 0:01:16]} Be7 {[%emt 0:00:07]} 8. Qf3 {[%emt 0:00:03]} Qc7 {[%emt 0:00:04]} 9. O-O-O {[%emt 0:00:10]} Nbd7 {[%emt 0:00:04]} 10. g4 {[%emt 0:00:59]} h6 {[%emt 0:00:05]} 11. Bxf6 {[%emt 0:00:31]} Bxf6 {[%emt 0:00:06]} 12. h4 {[%emt 0:00:21]} Nb6 {[%emt 0:00:05] B99: Sicilian Najdorf: 6 Bg5 e6 7 f4 Be7 8 Qf3 Qc7 9 0-0-0 Nbd7.} (12... Qb6 $14 13. Nb3 Qc7) 13. Be2 {[%emt 0:00:37]} (13. g5 $16 Bxd4 14. Rxd4) 13... Bd7 $14 {[%emt 0:00:04]} 14. g5 {[%emt 0:00:26]} Be7 {[%emt 0:00:14] [#] White is slightly better.} 15. g6 $1 {[%emt 0:00:05]} fxg6 {[%emt 0:00:02]} (15... O-O 16. Rhg1) 16. Rhg1 $146 {[%emt 0:01:39] White is more active.} (16. Qh3 $16) ({Predecessor:} 16. Qg4 O-O-O 17. Nxe6 Bxe6 18. Qxe6+ Kb8 19. Qxg6 d5 20. Nxd5 Nxd5 21. exd5 Qxf4+ 22. Kb1 {½-½ Nastore,P (2252)-Tudor,H (2347) ROM-chT Mamaia 2024 (2.18)}) 16... O-O-O {[%emt 0:01:32]} 17. Rxg6 {[%emt 0:02:16]} Bf6 {[%emt 0:00:05][%cal Oh8f8]} 18. Kb1 {[%emt 0:08:30]} Rhf8 {[%emt 0:02:43][%cal Oc8b8]} 19. Qe3 {[%emt 0:04:54]} Kb8 {[%emt 0:03:40][%cal Oe6e5]} 20. a3 {[%emt 0:07:44][%cal Oe4e5]} Bc8 {[%emt 0:06:07][%cal Oe6e5]} 21. h5 {[%emt 0:05:38]} Qc5 {[%emt 0:15:22]} (21... e5 $11 22. fxe5 Bxe5) 22. Qd3 {[%emt 0:07:50]} e5 {[%emt 0:04:10][%cal Be6e5,Be5e4][%mdl 32]} 23. Nb3 {[%emt 0:01:42]} Qc7 {[%emt 0:00:37]} 24. f5 {[%emt 0:02:36]} d5 $1 {[%emt 0:03:04]} 25. exd5 {[%emt 0:10:37]} e4 $1 {[%emt 0:00:06]} 26. d6 {[%emt 0:00:14]} Qxc3 {[%emt 0:04:35]} 27. Qxc3 {[%emt 0:00:44] Successful Defense White} Bxc3 {[%emt 0:00:06]} 28. bxc3 {[%emt 0:00:02]} Na4 $132 {[%emt 0:00:01][%mdl 2048] Dodges Nc5. Black is fighting back} 29. Rg3 {[%emt 0:01:41]} e3 {[%emt 0:08:33]} (29... Bxf5 30. Rd4 Bd7 31. Rxe4 $16) 30. Rxe3 {[%emt 0:18:17]} Rfe8 {[%emt 0:00:02]} 31. Rxe8 {[%emt 0:00:27]} Nxc3+ {[%emt 0:00:38]} 32. Ka1 {[%emt 0:00:19]} Rxe8 {[%emt 0:00:04]} 33. d7 {[%emt 0:00:02]} Bxd7 {[%emt 0:00:11]} 34. Rxd7 {[%emt 0:00:05]} Rxe2 $11 {[%emt 0:00:11][%mdl 4096] Endgame KRN-KRN} 35. Kb2 {[%emt 0:00:02]} (35. Rxg7 $2 Rxc2 36. Rg8+ Ka7 $19) 35... Na4+ {[%emt 0:01:02]} 36. Kc1 {[%emt 0:00:01]} Re5 {[%emt 0:00:07]} (36... Rg2 $11) 37. Nd4 $16 {[%emt 0:00:53]} Nc3 {[%emt 0:01:46]} (37... Re1+ $16 38. Kd2 Re4) 38. Rxg7 $18 {[%emt 0:01:05]} Ne4 {[%emt 0:09:00]} 39. Kb2 {[%emt 0:02:17]} Rd5 {[%emt 0:12:17]} 40. c3 {[%emt 0:00:35]} Nf6 {[%emt 0:00:53]} 41. Rg6 {[%emt 0:00:48][%csl LRf6,LRh6]} Nxh5 {[%emt 0:00:55]} 42. Rxh6 {[%emt 0:01:47]} Ng3 {[%emt 0:01:01]} (42... Nf4 $16 43. f6 Rd7) 43. f6 {[%emt 0:06:20][%cal Bf5f6,Bf6f7][%mdl 32]} Rd7 {[%emt 0:00:08]} 44. Rh8+ {[%emt 0:00:02]} Ka7 {[%emt 0:01:36] [#]} 45. Rf8 {[%emt 0:01:29] Dodges Rf7} Nf1 $2 {[%emt 0:09:08]} (45... Kb6 46. f7 Nf1) 46. f7 {[%emt 0:00:06][%cal Of8a8] Ra8+! is the strong threat.} Kb6 {[%emt 0:00:04]} 47. Ka2 $2 {[%emt 0:01:29]} (47. Nf3) 47... Nd2 {[%emt 0:01:40]} 48. Nf5 {[%emt 0:02:28]} ({Better is} 48. Nc6 $18 Nc4 49. Kb3 Na5+ 50. Nxa5 Kxa5 51. c4) 48... Nf3 {[%emt 0:04:19] [#]} (48... Nc4 $16 {was called for.}) 49. Nh6 {[%emt 0:01:21]} (49. c4 $1 $18 {has better winning chances.}) 49... Ne5 $16 {[%emt 0:00:16]} 50. Kb3 {[%emt 0:00:12]} Ka5 {[%emt 0:00:36]} 51. c4 {[%emt 0:02:42]} (51. a4 $16) 51... Rd3+ $11 {[%emt 0:00:47] The position is equal.} 52. Kc2 {[%emt 0:00:24]} Rf3 $1 {[%emt 0:00:12]} 53. c5 {[%emt 0:01:26]} Rf6 {[%emt 0:00:48]} 54. Re8 {[%emt 0:01:52] Weighted Error Value: White=0.26 (precise) /Black=0.24 (precise)   Loses game:     	---       	Black=1      Mistake:       	White=6     	Black=5      Inaccurate:     	White=2     	Black=2      OK:         	White=21    	Black=17     Best:        	White=4     	Black=5      Strong:       	---       	Black=3} 1/2-1/2

[Event "Budapest One Week IM-A 03-2025"]
[Site "Budapest"]
[Date "2025.03.21"]
[Round "8.4"]
[White "Tscheuschner, Georg"]
[Black "Chakrabarty, Reyaansh"]
[Result "0-1"]
[Annotator "TA"]
[ECO "A06"]
[WhiteElo "2236"]
[BlackElo "2181"]
[PlyCount "54"]
[EventDate "2025.03.17"]
[EventType "tourn"]
[EventCountry "HUN"]
[SourceTitle "playchess.com"]
[Source "ChessBase"]
[SourceQuality "1"]
[TimeControl "5400+30"]

{[%evp 22,54,14,30,40,19,25,29,32,34,34,14,30,29,31,33,37,25,17,21,29,16,15,9,33,19,21,10,17,19,12,14,20,-472,-462]} 1. Nf3 {[%emt 0:00:03]} d5 {[%emt 0:03:44]} 2. c4 {[%emt 0:00:05]} e6 {[%emt 0:00:02]} 3. e3 {[%emt 0:00:05]} Nf6 {[%emt 0:00:04]} 4. Nc3 {[%emt 0:00:05]} Bd6 {[%emt 0:00:01]} 5. b3 {[%emt 0:00:12]} O-O {[%emt 0:00:04]} 6. Bb2 {[%emt 0:00:22]} c5 {[%emt 0:00:07]} 7. cxd5 {[%emt 0:00:14]} exd5 {[%emt 0:00:12]} 8. d4 {[%emt 0:00:15]} cxd4 {[%emt 0:00:04]} 9. Nxd4 {[%emt 0:00:10]} Nc6 {[%emt 0:00:01]} 10. Be2 {[%emt 0:00:24]} Nxd4 $1 {[%emt 0:00:03] 10...Nxd4 is better than 10...Re8.} 11. Qxd4 {[%emt 0:00:12]} Re8 {[%emt 0:00:09]} 12. O-O {[%emt 0:02:00]} Be5 {[%emt 0:00:01] D32: Tarrasch Defence: Sidelines and lines without g3.} 13. Qd3 {[%emt 0:03:40]} Ne4 {[%emt 0:12:14]} 14. Nxe4 {[%emt 0:00:28] A sharp opening} Bxb2 {[%emt 0:00:05] White has an edge.} 15. Rad1 {[%emt 0:00:08]} (15. Rab1 Be5 16. Ng3 Be6 $11) 15... Bf5 {[%emt 0:03:29]} (15... Rxe4 $2 16. Qxe4 (16. Qxd5 $2 {is the wrong capture.} Qxd5 17. Rxd5 Bf6 $19) 16... Be6 17. Qf4 $18) 16. Qd2 $1 {[%emt 0:00:21]} Bxe4 {[%emt 0:06:41]} 17. Qxb2 {[%emt 0:00:06]} Qg5 $146 {[%emt 0:00:02][%csl Ge4][%cal Rg5g2] [#]} (17... Rc8 18. Rc1 Qb6 19. Rfd1 h6 20. Qd2 Red8 21. Bd3 Qg6 22. Bxe4 Qxe4 23. g3 Rxc1 24. Qxc1 {1-0 Giri,A (2767)-Dominguez Perez,L (2752) EU-Cup 32nd Novi Sad 2016 (7.2)}) 18. g3 {[%emt 0:00:57]} h5 {[%emt 0:00:46][%cal Bh7h5,Bh5h4][%mdl 32]} 19. Qd4 {[%emt 0:29:35]} h4 {[%emt 0:04:23]} 20. g4 {[%emt 0:02:47]} Qe7 {[%emt 0:03:50]} 21. Rc1 {[%emt 0:10:59]} Qa3 {[%emt 0:03:04]} 22. Qd2 {[%emt 0:18:07]} Rac8 {[%emt 0:01:28]} 23. f3 {[%emt 0:02:11]} Bg6 $1 {[%emt 0:00:21]} 24. Rfe1 {[%emt 0:01:28]} Rc5 {[%emt 0:01:42]} 25. Rxc5 {[%emt 0:12:35]} Qxc5 {[%emt 0:00:07]} 26. Bf1 {[%emt 0:00:39]} Rc8 {[%emt 0:02:49]} 27. Kf2 $2 {[%emt 0:02:38][%mdl 8192] [#]} (27. Rd1 $11 {and White is okay.}) 27... Qd6 $1 {[%emt 0:00:06] Weighted Error Value: White=0.40/Black=0.04 (flawless)   Loses game:     	White=1     	---        OK:         	White=8     	Black=6      Best:        	White=1     	---        Strong:       	White=1     	Black=2} 0-1

[Event "Budapest One Week IM-A 03-2025"]
[Site "Budapest"]
[Date "2025.03.21"]
[Round "8.5"]
[White "Nakahara, Kan"]
[Black "Krizsany, Laszlo"]
[Result "1/2-1/2"]
[Annotator "TA"]
[ECO "B03"]
[WhiteElo "2113"]
[BlackElo "2287"]
[PlyCount "99"]
[EventDate "2025.03.17"]
[EventType "tourn"]
[EventCountry "HUN"]
[SourceTitle "playchess.com"]
[Source "ChessBase"]
[SourceQuality "1"]
[TimeControl "5400+30"]

{[%evp 28,99,-54,-38,-58,-54,-59,-54,-11,-29,-20,-23,0,-14,0,-9,7,6,27,0,0,0,0,-17,-21,-14,-14,-19,0,0,0,0,39,39,42,0,25,30,49,0,28,-30,0,-19,0,-231,-183,-169,-45,-20,0,-8,0,0,0,0,0,0,33,0,0,0,0,0,0,0,0,-29,-29,-29,-27,-235,-8,-8]} 1. e4 {[%emt 0:00:02][%cal Be2e4,Be4e5][%mdl 32]} Nf6 {[%emt 0:00:07]} 2. e5 {[%emt 0:00:48]} Nd5 {[%emt 0:00:07]} 3. d4 {[%emt 0:00:08]} d6 {[%emt 0:00:05]} 4. c4 {[%emt 0:02:10]} Nb6 {[%emt 0:00:05]} 5. exd6 {[%emt 0:00:03]} cxd6 {[%emt 0:00:06]} 6. Nf3 {[%emt 0:00:41]} g6 {[%emt 0:00:13]} 7. Be2 {[%emt 0:01:36]} Bg7 {[%emt 0:00:07]} 8. O-O {[%emt 0:00:37]} O-O {[%emt 0:00:07]} 9. Nc3 {[%emt 0:07:48]} Nc6 {[%emt 0:00:09]} 10. Be3 {[%emt 0:07:01]} Bg4 {[%emt 0:00:16]} 11. b3 {[%emt 0:02:33]} d5 {[%emt 0:00:08]} 12. c5 {[%emt 0:02:04]} Nc8 {[%emt 0:00:07][%cal Bb6c8,Bc8e7,Be7f5][%mdl 32]} 13. Rc1 {[%emt 0:07:54]} e6 {[%emt 0:00:38]} 14. h3 {[%emt 0:15:17]} Bxf3 {[%emt 0:00:08]} 15. Bxf3 {[%emt 0:00:02]} N8e7 {[%emt 0:00:12] B04: Alekhine's Defence: 4 Nf3.} 16. Qd2 {[%emt 0:00:49]} Nf5 {[%emt 0:05:36][%cal Rf5d4]} 17. Ne2 {[%emt 0:01:18]} h6 {[%emt 0:04:11] Black is slightly better.} 18. g3 {[%emt 0:07:44]} Qf6 {[%emt 0:02:26][%cal Rf5d4]} 19. Bg4 $146 {[%emt 0:04:01]} (19. Rcd1 Nfxd4 20. Nxd4 Nxd4 21. Bxd5 Rad8 22. Bxd4 Qxd4 23. Qa5 Qe5 24. Bxb7 Qb8 25. c6 {0-1 Dean,R (1771)-Connor,M (1576) Harrogate 4NCL op 24th 2020 (3)}) 19... Nxe3 {[%emt 0:18:20]} (19... Nfxd4 20. Nxd4 Nxd4 21. Bxh6 Bxh6 22. Qxh6 Rad8) 20. fxe3 {[%emt 0:00:11]} Qg5 {[%emt 0:00:19]} 21. Bf3 {[%emt 0:07:40]} Rad8 {[%emt 0:03:45]} 22. b4 {[%emt 0:02:08]} a6 {[%emt 0:11:05]} 23. h4 {[%emt 0:01:51]} Qe7 {[%emt 0:00:14]} 24. a4 {[%emt 0:00:40]} Qc7 {[%emt 0:05:17]} 25. Bg4 {[%emt 0:02:31]} h5 {[%emt 0:08:43]} 26. Bh3 {[%emt 0:00:51]} Bh6 {[%emt 0:00:54]} 27. b5 {[%emt 0:06:11]} axb5 {[%emt 0:09:24]} (27... Qa5 $5 28. Nc3 Ne5 29. dxe5 d4 $15) 28. axb5 {[%emt 0:00:05]} Qa5 {[%emt 0:00:11]} 29. Nc3 {[%emt 0:02:03]} Ne7 {[%emt 0:02:28]} 30. Ra1 {[%emt 0:06:38]} Qc7 {[%emt 0:00:07]} 31. Ne2 {[%emt 0:02:40] Space Advantage White} e5 {[%emt 0:00:35] ...exd4 is the strong threat.} 32. Qd3 {[%emt 0:01:07]} Rfe8 {[%emt 0:01:09]} 33. Ra3 {[%emt 0:01:40]} (33. Kh2 $14) 33... Nc8 {[%emt 0:06:18]} 34. Qd1 {[%emt 0:01:04]} (34. b6 $142 Qc6 35. Kh2) 34... b6 {[%emt 0:05:27]} 35. Rc3 {[%emt 0:01:38]} Na7 {[%emt 0:13:43]} 36. Rf6 $2 {[%emt 0:00:16]} (36. Kh2 $11) 36... exd4 {[%emt 0:01:08]} 37. exd4 {[%emt 0:03:15] [#]} Nxb5 {[%emt 0:00:28]} (37... Qe7 $1 $19 {[%cal Re7f6]} 38. Rxb6 Qxe2 39. Qxe2 Rxe2) 38. Rcf3 $15 {[%emt 0:03:22]} Qe7 {[%emt 0:03:05]} (38... Rxe2 {with more complications.} 39. Rxf7 Qc6 40. Qxe2 Nxd4 41. Qf2 Nxf3+ 42. Qxf3 Bg7) 39. Rxb6 {[%emt 0:00:21]} Qe4 {[%emt 0:01:01]} (39... Qxe2 {simplifies} 40. Qxe2 Rxe2 41. Rxb5 Rc2) 40. Bg2 {[%emt 0:00:48]} Qxe2 {[%emt 0:01:03]} 41. Qxe2 {[%emt 0:00:17]} Rxe2 {[%emt 0:00:03]} 42. Rxb5 {[%emt 0:00:01]} Rd2 {[%emt 0:00:22][%cal Od8a8]} 43. Rc3 {[%emt 0:00:57] [#]} Bg7 {[%emt 0:00:33]} (43... Rxd4 $2 44. c6 Rc8 (44... Rd1+ $2 45. Kh2 $18) 45. c7 $18 (45. Rxd5 Bg7 $11)) 44. c6 $1 {[%emt 0:00:51]} Bxd4+ {[%emt 0:01:15]} 45. Kh2 {[%emt 0:00:01]} Rc8 {[%emt 0:00:42]} (45... Bxc3 46. c7 Re8 (46... Rc8 47. Rb8 $18) 47. Rb8 $16 (47. Rxd5 $2 Rxd5 48. Bxd5 Ba5 $19)) (45... Re8 $5 46. c7 Kg7 $11 (46... Bxc3 47. Rb8 $16)) 46. c7 {[%emt 0:00:41][%cal Ob5b8]} Re2 $1 {[%emt 0:00:24]} (46... Bxc3 $2 47. Rb8 Be5 (47... Rxg2+ $2 48. Kxg2 Kg7 49. Rxc8 $18) 48. Rxc8+ Kg7 49. Rg8+ Kxg8 50. c8=Q+ (50. c8=B $2 {is the wrong capture.} Rd3 $19) 50... Kg7 51. Qe8 $18) 47. Rb8 {[%emt 0:00:30]} Ree8 {[%emt 0:00:10]} 48. Rcb3 {[%emt 0:00:28] Black must now prevent Rxc8.} Kg7 {[%emt 0:00:23]} 49. Bxd5 $2 {[%emt 0:00:52]} (49. R3b7 $11 {and White has nothing to worry.}) 49... Be5 $2 {[%emt 0:00:12]} (49... Re2+ $19 50. Kh3 Rxc7) 50. R3b7 {[%emt 0:00:38] Weighted Error Value: White=0.29 (precise) /Black=0.24 (precise)   Loses game:     	White=2     	---        Missed win:     	---       	Black=1      Mistake:       	White=2     	Black=1      Inaccurate:     	White=4     	Black=5      OK:         	White=14    	Black=11     Best:        	White=1     	---        Strong:       	White=1     	Black=1} 1/2-1/2

[Event "Budapest One Week IM-A 03-2025"]
[Site "Budapest"]
[Date "2025.03.22"]
[Round "9.1"]
[White "Krizsany, Laszlo"]
[Black "Turzo, Attila"]
[Result "1/2-1/2"]
[Annotator "TA"]
[ECO "C01"]
[WhiteElo "2287"]
[BlackElo "2272"]
[PlyCount "40"]
[EventDate "2025.03.17"]
[EventType "tourn"]
[EventCountry "HUN"]
[SourceTitle "playchess.com"]
[Source "ChessBase"]
[SourceQuality "1"]
[TimeControl "5400+30"]

{[%evp 10,15,22,15,12,6,26,5]} 1. e4 e6 2. d4 d5 3. exd5 exd5 4. Bd3 Nf6 5. Nf3 Bd6 6. O-O O-O {C01: French: Exchange Variation.} 7. c3 Nbd7 8. Re1 {Not much happened in this game.   Weighted Error Value: White=0.03 (flawless) /Black=0.10 (very precise)   OK:         	White=1     	---} {Predecessor:} c6 $146 9. Nbd2 Re8 10. Rxe8+ Qxe8 11. Nf1 Nf8 12. Bc2 Be6 13. Ng3 Qd7 14. Bg5 Ne8 15. Be3 Nf6 16. Bg5 Ne8 17. Be3 Nf6 18. Bg5 Ne8 19. Be3 Nf6 20. Bg5 Ne8 {½-½ Abdulla,K (2168)-Isgenderova,H (2194) Marmaris Cleopatra (Women) 2018 (4.5)} 1/2-1/2